lending/lending_fUSD_20241005
["ID","MTS","AMOUNT","RATE_DAILY","PERIOD"]
[339894814,1728147059922,-500.0,0.00038767,30]
[339894815,1728147059932,-500.0,0.00038767,30]
[339894816,1728147059941,-1092.02,0.00038767,30]
[339894817,1728147059952,-500.0,0.00038767,30]
[339894818,1728147059968,-500.0,0.00038767,30]
[339894819,1728147059977,-1147.66,0.00038767,30]
[339894820,1728147059986,-500.0,0.00038767,7]
[339894821,1728147059995,-500.0,0.00038767,30]
[339894822,1728147060005,-500.0,0.00038767,30]
[339894823,1728147060014,-500.0,0.00038767,30]
[339894824,1728147060024,-500.0,0.00038767,30]
[339894825,1728147060033,-500.0,0.00038767,30]
[339894826,1728147060042,-500.0,0.00038767,2]
[339894827,1728147060052,-500.0,0.00038767,30]
[339894828,1728147060061,-500.0,0.00038767,30]
[339894829,1728147060071,-500.0,0.00038767,30]
[339894830,1728147060080,-500.0,0.00038767,30]
[339894831,1728147060089,-500.0,0.00038767,30]
[339894832,1728147060098,-605.99,0.00038767,30]
[339894833,1728147060107,-500.0,0.00038767,30]
[339894834,1728147060116,-500.0,0.00038767,30]
[339894835,1728147060126,-500.0,0.00038767,30]
[339894836,1728147060135,-500.0,0.00038767,30]
[339894837,1728147060145,-500.0,0.00038767,30]
[339894838,1728147060154,-959.8,0.00038767,30]
[339894839,1728147060163,-500.0,0.00038767,30]
[339894840,1728147060173,-500.0,0.00038767,30]
[339894841,1728147060182,-500.0,0.00038767,30]
[339894842,1728147060193,-597.47,0.00038767,30]
[339894843,1728147060202,-500.0,0.00038767,30]
[339894844,1728147060211,-500.0,0.00038767,30]
[339894845,1728147060221,-500.0,0.00038767,30]
[339894846,1728147060231,-500.0,0.00038767,30]
[339894847,1728147060241,-200.0,0.00038767,7]
[339894848,1728147060250,-500.0,0.00038767,30]
[339894849,1728147060259,-500.0,0.00038767,30]
[339894850,1728147060270,-500.0,0.00038767,30]
[339894851,1728147060279,-500.0,0.00038767,30]
[339894852,1728147060288,-500.0,0.00038767,30]
[339894853,1728147060298,-500.0,0.00038767,30]
[339894854,1728147060307,-500.0,0.00038767,30]
[339894855,1728147060316,-500.0,0.00038767,30]
[339894856,1728147060328,-500.0,0.00038767,30]
[339894857,1728147060337,-502.06079605,0.00038767,30]
[339894858,1728147060346,-1254.87,0.00038767,30]
[339894859,1728147060355,-500.0,0.00038767,30]
[339894860,1728147060364,-500.0,0.00038767,30]
[339894861,1728147060374,-500.0,0.00038767,30]
[339894862,1728147060383,-500.0,0.00038767,30]
[339894863,1728147060393,-1340.11,0.00038767,30]
[339894864,1728147060404,-500.0,0.00038767,30]
[339894865,1728147060414,-500.0,0.00038767,30]
[339894866,1728147060423,-500.0,0.00038767,30]
[339894867,1728147060432,-1185.33,0.00038767,30]
[339894868,1728147060442,-520.85267118,0.00038767,30]
[339894869,1728147060454,-500.0,0.00038767,30]
[339894870,1728147060463,-500.0,0.00038767,30]
[339894871,1728147060472,-500.0,0.00038767,30]
[339894872,1728147060481,-500.0,0.00038767,30]
[339894873,1728147060490,-1060.42,0.00038767,30]
[339894874,1728147060500,-1130.0,0.00038767,30]
[339894875,1728147060509,-599.23493601,0.00038767,30]
[339894876,1728147060518,-952.13,0.00038767,30]
[339894877,1728147060527,-500.0,0.00038767,30]
[339894878,1728147060537,-500.0,0.00038767,30]
[339894879,1728147060546,-500.0,0.00038767,30]
[339894880,1728147060555,-865.66,0.00038767,30]
[339894881,1728147060564,-500.0,0.00038767,30]
[339894882,1728147060573,-996.76,0.00038767,30]
[339894883,1728147060582,-500.0,0.00038767,30]
[339894884,1728147060591,-500.0,0.00038767,30]
[339894885,1728147060601,-500.0,0.00038767,30]
[339894886,1728147060611,-585.41,0.00038767,30]
[339894887,1728147060620,-1128.68,0.00038767,30]
[339894888,1728147060630,-500.0,0.00038767,30]
[339894889,1728147060639,-357.68071521,0.00038767,30]
[339894890,1728147060649,-500.0,0.00038767,30]
[339894891,1728147060659,-999.01,0.00038767,30]
[339894892,1728147060668,-1208.3,0.00038767,30]
[339894893,1728147060678,-638.28772971,0.00038767,30]
[339894894,1728147060687,-500.0,0.00038767,30]
[339894895,1728147060698,-500.0,0.00038767,30]
[339894896,1728147060707,-500.0,0.00038767,30]
[339894897,1728147060718,-586.16476606,0.00038767,30]
[339894898,1728147060728,-500.0,0.00038767,30]
[339894899,1728147060737,-500.0,0.00038767,30]
[339894900,1728147060746,-500.0,0.00038767,30]
[339894901,1728147060755,-500.0,0.00038767,30]
[339894902,1728147060764,-508.91,0.00038767,30]
[339894903,1728147060773,-868.76,0.00038767,30]
[339894904,1728147060783,-500.0,0.00038767,30]
[339894905,1728147060792,-151.0,0.00038767,14]
[339894906,1728147060801,-150.0,0.00038767,30]
[339894907,1728147060810,-616.51075151,0.00038767,30]
[339894908,1728147060819,-1096.8,0.00038767,30]
[339894909,1728147060827,-500.0,0.00038767,30]
[339894910,1728147060837,-613.51,0.00038767,30]
[339894911,1728147060846,-930.7,0.00038767,30]
[339894912,1728147060856,-500.0,0.00038767,30]
[339894913,1728147060865,-646.65,0.00038767,30]
[339894914,1728147060874,-1272.74,0.00038767,30]
[339894915,1728147060883,-504.49,0.00038767,30]
[339894916,1728147060892,-937.71,0.00038767,30]
[339894917,1728147060902,-845.63,0.00038767,30]
[339894918,1728147060911,-500.0,0.00038767,30]
[339894919,1728147060921,-500.0,0.00038767,30]
[339894920,1728147060930,-500.0,0.00038767,30]
[339894921,1728147060939,-1381.8,0.00038767,30]
[339894922,1728147060953,-500.0,0.00038767,30]
[339894923,1728147060962,-500.0,0.00038767,30]
[339894924,1728147060971,-500.0,0.00038767,30]
[339894925,1728147060980,-500.0,0.00038767,30]
[339894926,1728147060989,-500.0,0.00038767,30]
[339894927,1728147061161,-500.0,0.00038767,30]
[339894928,1728147061170,-741.0,0.00038767,30]
[339894929,1728147061180,-500.0,0.00038767,30]
[339894930,1728147061189,-500.0,0.00038767,30]
[339894931,1728147061202,-982.24,0.00038767,30]
[339894932,1728147061211,-500.0,0.00038767,30]
[339894933,1728147061220,-500.0,0.00038767,30]
[339894934,1728147061229,-1105.62,0.00038767,30]
[339894935,1728147061238,-500.0,0.00038767,30]
[339894936,1728147061247,-500.0,0.00038767,30]
[339894937,1728147061256,-500.0,0.00038767,30]
[339894938,1728147061266,-500.0,0.00038767,30]
[339894939,1728147061276,-500.0,0.00038767,30]
[339894940,1728147061286,-877.47,0.00038767,30]
[339894941,1728147061295,-500.0,0.00038767,30]
[339894942,1728147061304,-500.0,0.00038767,30]
[339894943,1728147061313,-500.0,0.00038767,30]
[339894944,1728147061323,-151.0,0.00038767,14]
[339894945,1728147061332,-994.36,0.00038767,30]
[339894946,1728147061340,-500.0,0.00038767,30]
[339894947,1728147061349,-1035.51,0.00038767,30]
[339894948,1728147061358,-500.0,0.00038767,30]
[339894949,1728147061367,-500.0,0.00038767,30]
[339894950,1728147061377,-500.0,0.00038767,30]
[339894951,1728147061386,-989.87,0.00038767,30]
[339894952,1728147061395,-500.0,0.00038767,30]
[339894953,1728147061404,-500.0,0.00038767,30]
[339894954,1728147061413,-503.06763455,0.00038767,30]
[339894955,1728147061422,-871.55,0.00038767,30]
[339894956,1728147061432,-500.0,0.00038767,30]
[339894957,1728147061441,-1333.03,0.00038767,30]
[339894958,1728147061452,-500.0,0.00038767,30]
[339894959,1728147061461,-925.19,0.00038767,30]
[339894960,1728147061471,-500.0,0.00038767,30]
[339894961,1728147061480,-500.0,0.00038767,30]
[339894962,1728147061490,-1502.02,0.00038767,30]
[339894963,1728147061499,-889.77,0.00038767,30]
[339894964,1728147061508,-503.1180128,0.00038767,30]
[339894965,1728147061518,-500.0,0.00038767,30]
[339894966,1728147061528,-600.24,0.00038767,30]
[339894967,1728147061537,-500.0,0.00038767,30]
[339894968,1728147061546,-500.0,0.00038767,30]
[339894969,1728147061555,-531.51124175,0.00038767,30]
[339894970,1728147061564,-717.54,0.00038767,30]
[339894971,1728147061574,-963.18,0.00038767,30]
[339894972,1728147061583,-500.0,0.00038767,5]
[339894973,1728147061592,-551.7,0.00038767,30]
[339894974,1728147061601,-584.17,0.00038767,30]
[339894975,1728147061610,-1246.88,0.00038767,30]
[339894976,1728147061620,-518.72,0.00038767,30]
[339894977,1728147061629,-500.0,0.00038767,30]
[339894978,1728147061638,-1472.61,0.00038767,30]
[339894979,1728147061647,-500.0,0.00038767,30]
[339894980,1728147061656,-500.0,0.00038767,30]
[339894981,1728147061666,-500.0,0.00038767,30]
[339894982,1728147061676,-500.0,0.00038767,30]
[339894983,1728147061685,-1465.78,0.00038767,30]
[339894984,1728147061695,-500.0,0.00038767,30]
[339894985,1728147061705,-500.0,0.00038767,30]
[339894986,1728147061714,-848.55,0.00038767,30]
[339894987,1728147061723,-500.0,0.00038767,30]
[339894988,1728147061732,-500.0,0.00038767,30]
[339894989,1728147061741,-372.69749595,0.00038767,30]
[339894990,1728147061750,-500.0,0.00038767,30]
[339894991,1728147061760,-779.41,0.00038767,30]
[339894992,1728147061769,-500.0,0.00038767,30]
[339894993,1728147061778,-500.0,0.00038767,30]
[339894994,1728147061788,-500.0,0.00038767,30]
[339894995,1728147061797,-500.0,0.00038767,30]
[339894996,1728147061807,-777.28,0.00038767,30]
[339894997,1728147061816,-500.0,0.00038767,30]
[339894998,1728147061825,-500.0,0.00038767,30]
[339894999,1728147061835,-280.81448247,0.00038767,30]
[339895000,1728147061844,-1683.21,0.00038767,30]
[339895001,1728147061853,-500.0,0.00038767,30]
[339895002,1728147061863,-500.0,0.00038767,30]
[339895003,1728147061872,-500.0,0.00038767,30]
[339895004,1728147061881,-1078.6,0.00038767,30]
[339895005,1728147061890,-1725.49,0.00038767,30]
[339895006,1728147061899,-500.0,0.00038767,30]
[339895007,1728147061909,-500.0,0.00038767,30]
[339895008,1728147061918,-587.6,0.00038767,30]
[339895009,1728147061927,-659.83,0.00038767,30]
[339895010,1728147061936,-600.74,0.00038767,30]
[339895011,1728147061947,-500.0,0.00038767,30]
[339895012,1728147061956,-500.0,0.00038767,30]
[339895013,1728147061965,-500.0,0.00038767,30]
[339895014,1728147061974,-706.43,0.00038767,30]
[339895015,1728147061984,-500.0,0.00038767,30]
[339895016,1728147061993,-1054.81,0.00038767,30]
[339895017,1728147062002,-500.0,0.00038767,30]
[339895018,1728147062011,-500.0,0.00038767,30]
[339895019,1728147062020,-500.0,0.00038767,30]
[339895020,1728147062029,-1280.81,0.00038767,30]
[339895021,1728147062039,-500.0,0.00038767,30]
[339895022,1728147062048,-500.0,0.00038767,30]
[339895023,1728147062058,-500.0,0.00038767,30]
[339895024,1728147062068,-500.0,0.00038767,30]
[339895025,1728147062077,-1363.15,0.00038767,30]
[339895026,1728147062086,-500.0,0.00038767,30]
[339895027,1728147062095,-500.0,0.00038767,30]
[339895028,1728147062105,-500.0,0.00038767,30]
[339895029,1728147062114,-500.0,0.00038767,30]
[339895030,1728147062123,-500.0,0.00038767,30]
[339895031,1728147062132,-905.57,0.00038767,30]
[339895032,1728147062142,-500.0,0.00038767,30]
[339895033,1728147062151,-500.0,0.00038767,30]
[339895034,1728147062161,-1284.12,0.00038767,30]
[339895035,1728147062171,-1235.27,0.00038767,30]
[339895036,1728147062181,-500.0,0.00038767,30]
[339895037,1728147062190,-500.0,0.00038767,30]
[339895038,1728147062203,-500.0,0.00038767,30]
[339895039,1728147062212,-500.0,0.00038767,30]
[339895040,1728147062221,-500.0,0.00038767,30]
[339895041,1728147062230,-637.05,0.00038767,30]
[339895042,1728147062239,-500.0,0.00038767,30]
[339895043,1728147062248,-500.0,0.00038767,30]
[339895044,1728147062258,-1285.68,0.00038767,30]
[339895045,1728147062268,-503.25,0.00038767,30]
[339895046,1728147062278,-500.0,0.00038767,30]
[339895047,1728147062286,-500.0,0.00038767,30]
[339895048,1728147062295,-500.0,0.00038767,30]
[339895049,1728147062305,-500.0,0.00038767,30]
[339895050,1728147062315,-500.0,0.00038767,30]
[339895051,1728147062331,-938.91,0.00038767,30]
[339895052,1728147062339,-500.0,0.00038767,30]
[339895053,1728147062349,-500.0,0.00038767,30]
[339895054,1728147062358,-500.0,0.00038767,30]
[339895055,1728147062367,-950.76,0.00038767,30]
[339895056,1728147062378,-500.0,0.00038767,30]
[339895057,1728147062387,-669.13,0.00038767,30]
[339895058,1728147062396,-1214.24,0.00038767,30]
[339895059,1728147062406,-500.0,0.00038767,30]
[339895060,1728147062417,-1555.77,0.00038767,30]
[339895061,1728147062426,-1046.87,0.00038767,30]
[339895062,1728147062435,-500.0,0.00038767,30]
[339895063,1728147062446,-500.0,0.00038767,30]
[339895064,1728147062455,-1000.0,0.00038767,30]
[339895065,1728147062463,-500.0,0.00038767,30]
[339895066,1728147062472,-766.5,0.00038767,30]
[339895067,1728147062482,-1076.33,0.00038767,30]
[339895068,1728147062492,-500.0,0.00038767,30]
[339895069,1728147062501,-500.0,0.00038767,30]
[339895070,1728147062510,-500.0,0.00038767,30]
[339895071,1728147062519,-500.0,0.00038767,30]
[339895072,1728147062528,-773.6,0.00038767,30]
[339895073,1728147062536,-500.0,0.00038767,30]
[339895074,1728147062546,-956.46,0.00038767,30]
[339895075,1728147062555,-500.0,0.00038767,30]
[339895076,1728147062563,-500.0,0.00038767,30]
[339895077,1728147062573,-500.0,0.00038767,30]
[339895078,1728147062582,-500.0,0.00038767,2]
[339895079,1728147062591,-500.0,0.00038767,30]
[339895080,1728147062600,-500.0,0.00038767,30]
[339895081,1728147062610,-500.0,0.00038767,30]
[339895082,1728147062619,-500.0,0.00038767,30]
[339895083,1728147062628,-500.0,0.00038767,30]
[339895084,1728147062638,-1442.35,0.00038767,30]
[339895085,1728147062647,-1211.84,0.00038767,30]
[339895086,1728147062656,-502.44986567,0.00038767,30]
[339895087,1728147062665,-500.0,0.00038767,30]
[339895088,1728147062674,-500.0,0.00038767,30]
[339895089,1728147062683,-658.69,0.00038767,30]
[339895090,1728147062693,-1361.72,0.00038767,24]
[339895091,1728147062704,-500.0,0.00038767,30]
[339895092,1728147062713,-1120.5,0.00038767,30]
[339895093,1728147062721,-500.0,0.00038767,30]
[339895094,1728147062730,-500.0,0.00038767,30]
[339895095,1728147062739,-500.0,0.00038767,30]
[339895096,1728147062748,-500.0,0.00038767,30]
[339895097,1728147062757,-1128.3,0.00038767,30]
[339895098,1728147062767,-500.0,0.00038767,30]
[339895099,1728147062776,-500.0,0.00038767,30]
[339895100,1728147062785,-500.0,0.00038767,30]
[339895101,1728147062794,-500.0,0.00038767,30]
[339895102,1728147062803,-723.77,0.00038767,30]
[339895103,1728147062812,-627.25,0.00038767,30]
[339895104,1728147062821,-500.0,0.00038767,30]
[339895105,1728147062830,-500.0,0.00038767,30]
[339895106,1728147062839,-1143.9,0.00038767,30]
[339895107,1728147062848,-502.75,0.00038767,30]
[339895108,1728147062858,-500.0,0.00038767,30]
[339895109,1728147062867,-1054.07,0.00038767,30]
[339895110,1728147062876,-500.0,0.00038767,30]
[339895111,1728147062885,-500.0,0.00038767,30]
[339895112,1728147062894,-1458.38,0.00038767,30]
[339895113,1728147062903,-500.0,0.00038767,30]
[339895114,1728147062912,-500.0,0.00038767,30]
[339895115,1728147062922,-680.05,0.00038767,30]
[339895116,1728147062931,-151.0,0.00038767,14]
[339895117,1728147062940,-2308.66,0.00038767,30]
[339895119,1728147062951,-333.81272098,0.00038767,30]
[339895121,1728147062961,-526.17,0.00038767,30]
[339895123,1728147062970,-500.0,0.00038767,30]
[339895125,1728147062979,-958.76,0.00038767,30]
[339895127,1728147062987,-500.0,0.00038767,30]
[339895129,1728147062996,-500.0,0.00038767,30]
[339895131,1728147063005,-151.0,0.00038767,14]
[339895132,1728147063014,-500.0,0.00038767,30]
[339895134,1728147063024,-521.35,0.00038767,30]
[339895137,1728147063034,-772.75,0.00038767,30]
[339895139,1728147063043,-668.383726,0.00038767,14]
[339895140,1728147063052,-500.0,0.00038767,30]
[339895143,1728147063062,-957.22,0.00038767,30]
[339895144,1728147063071,-500.0,0.00038767,30]
[339895146,1728147063080,-500.0,0.00038767,30]
[339895148,1728147063090,-668.383726,0.00038767,14]
[339895150,1728147063099,-1182.56,0.00038767,30]
[339895152,1728147063109,-658.49,0.00038767,30]
[339895154,1728147063119,-500.0,0.00038767,30]
[339895156,1728147063128,-500.0,0.00038767,30]
[339895158,1728147063137,-500.0,0.00038767,30]
[339895160,1728147063146,-500.0,0.00038767,30]
[339895162,1728147063156,-500.0,0.00038767,30]
[339895164,1728147063165,-500.0,0.00038767,30]
[339895166,1728147063175,-764.47,0.00038767,30]
[339895168,1728147063185,-500.0,0.00038767,30]
[339895170,1728147063196,-500.0,0.00038767,30]
[339895172,1728147063205,-500.0,0.00038767,30]
[339895174,1728147063215,-307.59512889,0.00038767,30]
[339895176,1728147063224,-1230.05,0.00038767,30]
[339895178,1728147063233,-500.0,0.00038767,30]
[339895180,1728147063243,-500.0,0.00038767,30]
[339895182,1728147063252,-500.0,0.00038767,30]
[339895184,1728147063262,-872.43,0.00038767,30]
[339895186,1728147063272,-500.0,0.00038767,30]
[339895188,1728147063282,-500.0,0.00038767,30]
[339895190,1728147063291,-500.0,0.00038767,30]
[339895192,1728147063301,-611.65,0.00038767,30]
[339895194,1728147063310,-500.0,0.00038767,30]
[339895196,1728147063319,-500.0,0.00038767,30]
[339895198,1728147063329,-842.7,0.00038767,30]
[339895200,1728147063338,-500.0,0.00038767,30]
[339895202,1728147063347,-500.0,0.00038767,30]
[339895203,1728147063357,-821.45,0.00038767,30]
[339895205,1728147063366,-1020.54,0.00038767,30]
[339895207,1728147063375,-500.0,0.00038767,30]
[339895209,1728147063385,-500.0,0.00038767,30]
[339895211,1728147063395,-500.0,0.00038767,30]
[339895213,1728147063404,-500.0,0.00038767,30]
[339895215,1728147063413,-508.95,0.00038767,30]
[339895217,1728147063422,-500.0,0.00038767,30]
[339895219,1728147063432,-213.74088826,0.00038767,30]
[339895221,1728147063442,-500.0,0.00038767,30]
[339895223,1728147063453,-500.0,0.00038767,30]
[339895225,1728147063463,-500.0,0.00038767,30]
[339895227,1728147063472,-500.0,0.00038767,30]
[339895229,1728147063482,-500.0,0.00038767,30]
[339895231,1728147063491,-500.0,0.00038767,30]
[339895233,1728147063501,-1095.31,0.00038767,30]
[339895235,1728147063511,-1129.38,0.00038767,30]
[339895237,1728147063520,-500.0,0.00038767,30]
[339895239,1728147063530,-500.0,0.00038767,30]
[339895241,1728147063540,-500.0,0.00038767,30]
[339895243,1728147063550,-500.0,0.00038767,30]
[339895245,1728147063560,-500.0,0.00038767,30]
[339895247,1728147063570,-500.0,0.00038767,30]
[339895249,1728147063579,-500.0,0.00038767,30]
[339895251,1728147063589,-794.7,0.00038767,30]
[339895253,1728147063598,-500.0,0.00038767,30]
[339895255,1728147063607,-500.0,0.00038767,30]
[339895257,1728147063618,-500.0,0.00038767,30]
[339895259,1728147063628,-830.85,0.00038767,30]
[339895261,1728147063638,-500.0,0.00038767,30]
[339895263,1728147063647,-500.0,0.00038767,30]
[339895265,1728147063658,-1027.89,0.00038767,30]
[339895267,1728147063667,-500.0,0.00038767,30]
[339895269,1728147063677,-500.0,0.00038767,30]
[339895271,1728147063686,-1487.21,0.00038767,30]
[339895273,1728147063697,-500.0,0.00038767,30]
[339895275,1728147063706,-1056.64,0.00038767,30]
[339895277,1728147063716,-234.94,0.00038767,30]
[339895279,1728147063726,-500.0,0.00038767,30]
[339895281,1728147063734,-500.0,0.00038767,30]
[339895283,1728147063743,-500.0,0.00038767,30]
[339895285,1728147063753,-500.0,0.00038767,30]
[339895287,1728147063763,-500.0,0.00038767,30]
[339895289,1728147063773,-966.23,0.00038767,30]
[339895291,1728147063782,-500.0,0.00038767,30]
[339895293,1728147063793,-500.0,0.00038767,30]
[339895295,1728147063804,-1402.9,0.00038767,30]
[339895297,1728147063814,-519.07892351,0.00038767,30]
[339895299,1728147063824,-500.0,0.00038767,30]
[339895301,1728147063834,-500.0,0.00038767,30]
[339895303,1728147063845,-155.637596,0.00038767,30]
[339895305,1728147063855,-500.0,0.00038767,30]
[339895307,1728147063865,-500.0,0.00038767,30]
[339895309,1728147063876,-500.0,0.00038767,30]
[339895311,1728147063886,-500.0,0.00038767,30]
[339895313,1728147063897,-500.0,0.00038767,30]
[339895315,1728147063907,-500.0,0.00038767,30]
[339895317,1728147063917,-500.0,0.00038767,30]
[339895319,1728147063927,-500.0,0.00038767,30]
[339895321,1728147063937,-500.0,0.00038767,30]
[339895323,1728147063951,-500.0,0.00038767,30]
[339895325,1728147063961,-500.0,0.00038767,30]
[339895327,1728147063971,-605.78,0.00038767,30]
[339895329,1728147063983,-534.83,0.00038767,30]
[339895331,1728147063993,-540.58,0.00038767,30]
[339895333,1728147064002,-1181.15,0.00038767,30]
[339895335,1728147064012,-500.0,0.00038767,30]
[339895337,1728147064022,-500.0,0.00038767,30]
[339895339,1728147064032,-567.65,0.00038767,30]
[339895341,1728147064041,-602.72,0.00038767,30]
[339895343,1728147064051,-942.98,0.00038767,30]
[339895345,1728147064062,-500.0,0.00038767,30]
[339895347,1728147064072,-500.0,0.00038767,30]
[339895349,1728147064082,-739.94,0.00038767,30]
[339895351,1728147064091,-500.0,0.00038767,30]
[339895353,1728147064100,-500.0,0.00038767,30]
[339895355,1728147064109,-960.92,0.00038767,30]
[339895357,1728147064118,-1122.04,0.00038767,30]
[339895359,1728147064127,-500.0,0.00038767,30]
[339895360,1728147064137,-500.0,0.00038767,30]
[339895362,1728147064147,-1176.15,0.00038767,30]
[339895364,1728147064156,-500.0,0.00038767,30]
[339895366,1728147064166,-1087.37,0.00038767,30]
[339895368,1728147064175,-500.0,0.00038767,30]
[339895370,1728147064184,-500.0,0.00038767,30]
[339895372,1728147064194,-500.0,0.00038767,30]
[339895374,1728147064207,-523.63564451,0.00038767,30]
[339895376,1728147064216,-500.0,0.00038767,30]
[339895378,1728147064225,-500.0,0.00038767,30]
[339895380,1728147064235,-548.14,0.00038767,30]
[339895382,1728147064245,-255.38607,0.00038767,30]
[339895384,1728147064254,-894.57,0.00038767,30]
[339895386,1728147064265,-500.0,0.00038767,30]
[339895388,1728147064275,-808.84,0.00038767,30]
[339895390,1728147064284,-500.0,0.00038767,30]
[339895392,1728147064295,-500.0,0.00038767,30]
[339895394,1728147064304,-500.0,0.00038767,30]
[339895396,1728147064314,-500.0,0.00038767,30]
[339895398,1728147064329,-500.0,0.00038767,2]
[339895400,1728147064339,-500.0,0.00038767,30]
[339895402,1728147064349,-744.22,0.00038767,30]
[339895404,1728147064359,-500.0,0.00038767,30]
[339895406,1728147064369,-795.88,0.00038767,30]
[339895407,1728147064380,-1106.31,0.00038767,30]
[339895410,1728147064390,-500.0,0.00038767,30]
[339895411,1728147064404,-500.0,0.00038767,30]
[339895413,1728147064414,-500.0,0.00038767,30]
[339895415,1728147064425,-500.0,0.00038767,30]
[339895417,1728147064435,-719.91,0.00038767,30]
[339895420,1728147064447,-912.73,0.00038767,30]
[339895421,1728147064456,-789.28,0.00038767,30]
[339895423,1728147064466,-519.73,0.00038767,30]
[339895425,1728147064476,-500.0,0.00038767,30]
[339895427,1728147064485,-500.0,0.00038767,30]
[339895429,1728147064495,-1177.68,0.00038767,30]
[339895431,1728147064505,-500.0,0.00038767,30]
[339895433,1728147064514,-780.08,0.00038767,14]
[339895435,1728147064524,-500.0,0.00038767,30]
[339895437,1728147064535,-750.93,0.00038767,30]
[339895439,1728147064544,-535.24,0.00038767,30]
[339895441,1728147064555,-500.0,0.00038767,30]
[339895443,1728147064564,-669.75,0.00038767,30]
[339895445,1728147064574,-554.26701032,0.00038767,30]
[339895447,1728147064583,-704.169704,0.00038767,30]
[339895449,1728147064594,-500.0,0.00038767,30]
[339895451,1728147064603,-1092.22,0.00038767,30]
[339895453,1728147064613,-500.0,0.00038767,30]
[339895455,1728147064623,-1378.36,0.00038767,30]
[339895457,1728147064632,-745.48,0.00038767,30]
[339895459,1728147064642,-500.0,0.00038767,30]
[339895460,1728147064651,-500.0,0.00038767,30]
[339895462,1728147064660,-500.0,0.00038767,30]
[339895464,1728147064669,-500.0,0.00038767,30]
[339895466,1728147064679,-500.0,0.00038767,30]
[339895468,1728147064688,-500.0,0.00038767,30]
[339895470,1728147064699,-500.0,0.00038767,30]
[339895472,1728147064709,-500.0,0.00038767,30]
[339895474,1728147064718,-636.12724301,0.00038767,30]
[339895476,1728147064726,-500.0,0.00038767,30]
[339895478,1728147064735,-1306.31,0.00038767,30]
[339895479,1728147064744,-500.0,0.00038767,30]
[339895481,1728147064755,-500.0,0.00038767,30]
[339895482,1728147064764,-524.51,0.00038767,30]
[339895483,1728147064774,-500.0,0.00038767,30]
[339895485,1728147064783,-500.0,0.00038767,30]
[339895486,1728147064792,-151.0,0.00038767,14]
[339895488,1728147064801,-500.0,0.00038767,30]
[339895490,1728147064811,-500.0,0.00038767,30]
[339895492,1728147064819,-513.93,0.00038767,30]
[339895494,1728147064829,-500.0,0.00038767,30]
[339895496,1728147064838,-500.0,0.00038767,30]
[339895498,1728147064848,-645.77,0.00038767,30]
[339895500,1728147064857,-833.87,0.00038767,30]